fUSD/lending_fUSD_20240220
["ID","MTS","AMOUNT","RATE_DAILY","PERIOD"]
[314597108,1708440648580,-500.0,0.00047671,30]
[314597109,1708440648590,-645.83,0.00047671,30]
[314597110,1708440648601,-500.0,0.00047671,30]
[314597111,1708440648615,-500.0,0.00047671,30]
[314597112,1708440648625,-500.0,0.00047671,30]
[314597113,1708440648635,-500.0,0.00047671,30]
[314597114,1708440648645,-489.21,0.00047671,30]
[314597115,1708440648655,-500.0,0.00047671,30]
[314597116,1708440648665,-500.0,0.00047671,30]
[314597117,1708440648675,-323.31,0.00047671,30]
[314597118,1708440648685,-500.0,0.00047671,30]
[314597119,1708440648696,-500.0,0.00047671,30]
[314597120,1708440648706,-500.0,0.00047671,30]
[314597121,1708440648716,-500.0,0.00047671,30]
[314597122,1708440648726,-500.0,0.00047671,30]
[314597123,1708440648736,-500.0,0.00047671,30]
[314597124,1708440648746,-500.0,0.00047671,30]
[314597125,1708440648756,-490.76,0.00047671,30]
[314597126,1708440648767,-500.0,0.00047671,30]
[314597127,1708440648778,-726.59,0.00047671,30]
[314597128,1708440648791,-500.0,0.00047671,30]
[314597129,1708440648801,-660.35,0.00047671,30]
[314597130,1708440648811,-1314.54,0.00047671,30]
[314597131,1708440648821,-500.0,0.00047671,30]
[314597132,1708440648831,-676.26,0.00047671,30]
[314597133,1708440648841,-239.14314218,0.00047671,30]
[314597134,1708440648851,-1484.04,0.00047671,30]
[314597135,1708440648861,-269.11,0.00047671,30]
[314597136,1708440648871,-500.0,0.00047671,30]
[314597137,1708440648881,-740.55,0.00047671,30]
[314597138,1708440648891,-500.0,0.00047671,30]
[314597139,1708440648901,-500.0,0.00047671,30]
[314597140,1708440648911,-500.0,0.00047671,30]
[314597141,1708440648921,-500.0,0.00047671,30]
[314597142,1708440648931,-500.0,0.00047671,30]
[314597143,1708440648940,-14405.28,0.00047671,30]
[314597144,1708440648950,-500.0,0.00047671,30]
[314597145,1708440648959,-500.0,0.00047671,30]
[314597146,1708440648969,-329.1,0.00047671,30]
[314597147,1708440648979,-556.21,0.00047671,30]
[314597148,1708440648989,-500.0,0.00047671,30]
[314597149,1708440648999,-472.69,0.00047671,30]
[314597150,1708440649010,-500.0,0.00047671,30]
[314597151,1708440649019,-500.0,0.00047671,30]
[314597152,1708440649029,-286.43429698,0.00047671,30]
[314597153,1708440649043,-2487.19,0.00047671,30]
[314597154,1708440649052,-500.0,0.00047671,30]
[314597155,1708440649062,-520.52,0.00047671,30]
[314597156,1708440649072,-500.0,0.00047671,30]
[314597157,1708440649081,-500.0,0.00047671,30]
[314597158,1708440649092,-500.0,0.00047671,30]
[314597159,1708440649101,-2780.6,0.00047671,30]
[314597160,1708440649111,-409.19,0.00047671,30]
[314597161,1708440649121,-500.0,0.00047671,30]
[314597162,1708440649131,-1010.8,0.00047671,30]
[314597163,1708440649141,-500.0,0.00047671,30]
[314597164,1708440649150,-514.71,0.00047671,30]
[314597165,1708440649160,-500.0,0.00047671,30]
[314597166,1708440649174,-167.42752105,0.00047735,9]
[314597167,1708440649184,-7514.819979,0.000478,30]
[314597168,1708440649194,-300.0,0.00047807,7]
[314597169,1708440649205,-500.0,0.00047845,2]
[314597170,1708440649214,-500.0,0.00047863,30]
[314597171,1708440649224,-6433.13476,0.0004788,30]
[314597172,1708440649234,-1269.672444,0.0004788,30]
[314597173,1708440649244,-3339.76441,0.0004788,30]
[314597174,1708440649254,-159.879999,0.00047926,30]
[314597175,1708440649264,-150.0,0.00047927,7]
[314597176,1708440649274,-85564.2472745,0.00047935,11]
[314597177,1708440649284,-500.0,0.00047944,30]
[314597178,1708440649298,-500.0,0.00047945,60]
[314597179,1708440649309,-500.0,0.00047945,30]
[314597180,1708440649319,-543.48065571,0.00047945,30]
[314597181,1708440649329,-708.87,0.00047945,30]
[314597182,1708440649340,-600.0,0.00047945,120]
[314597183,1708440649352,-600.0,0.00047945,120]
[314597184,1708440649362,-600.0,0.00047945,120]
[314597185,1708440649376,-600.0,0.00047945,120]
[314597186,1708440649551,-500.0,0.00047945,30]
[314597187,1708440649579,-500.0,0.00047945,30]
[314597188,1708440649589,-500.0,0.00047945,30]
[314597189,1708440649599,-645.83,0.00047945,30]
[314597190,1708440649608,-500.0,0.00047945,30]
[314597191,1708440649618,-500.0,0.00047945,30]
[314597192,1708440649627,-500.0,0.00047945,30]
[314597193,1708440649637,-500.0,0.00047945,30]
[314597194,1708440649646,-249.37,0.00047945,30]
[314597195,1708440649655,-350.58,0.00047945,30]
[314597196,1708440649665,-500.0,0.00047945,30]
[314597197,1708440649675,-500.0,0.00047945,30]
[314597198,1708440649690,-500.0,0.00047945,30]
[314597199,1708440649699,-500.0,0.00047945,30]
[314597200,1708440649709,-500.0,0.00047945,30]
[314597201,1708440649722,-726.59,0.00047945,30]
[314597202,1708440649732,-660.35,0.00047945,30]
[314597203,1708440649741,-1314.54,0.00047945,30]
[314597204,1708440649751,-500.0,0.00047945,30]
[314597205,1708440649760,-676.26,0.00047945,30]
[314597206,1708440649769,-1484.04,0.00047945,30]
[314597207,1708440649779,-500.0,0.00047945,30]
[314597208,1708440649790,-740.55,0.00047945,30]
[314597209,1708440649800,-500.0,0.00047945,30]
[314597210,1708440649809,-157.15,0.00047945,30]
[314597211,1708440649823,-500.0,0.00047945,30]
[314597212,1708440649833,-500.0,0.00047945,30]
[314597213,1708440649842,-14405.28,0.00047945,30]
[314597214,1708440649851,-500.0,0.00047945,30]
[314597215,1708440649861,-526.02,0.00047945,30]
[314597216,1708440649871,-500.0,0.00047945,30]
[314597217,1708440649881,-2487.19,0.00047945,30]
[314597218,1708440649890,-500.0,0.00047945,30]
[314597219,1708440649900,-520.52,0.00047945,30]
[314597220,1708440649910,-500.0,0.00047945,30]
[314597221,1708440649920,-500.0,0.00047945,30]
[314597222,1708440649929,-2780.6,0.00047945,30]
[314597223,1708440649939,-500.0,0.00047945,30]
[314597224,1708440649951,-1010.8,0.00047945,30]
[314597225,1708440649961,-500.0,0.00047945,30]
[314597226,1708440649971,-514.71,0.00047945,30]
[314597227,1708440649981,-500.0,0.00047945,30]
[314597228,1708440649990,-943.59902,0.00047945,17]
[314597229,1708440650000,-688.737942,0.0004797,5]
[314597230,1708440650010,-2947.29397079,0.00047986,9]
[314597231,1708440650019,-17220.013,0.00048,120]
[314597232,1708440650028,-17220.014,0.00048,120]
[314597233,1708440650040,-17220.014,0.00048,120]
[314597234,1708440650050,-17220.014,0.00048,120]
[314597235,1708440650059,-17220.014,0.00048,120]
[314597236,1708440650069,-5000.0,0.00048,120]
[314597237,1708440650080,-152.0,0.00048,90]
[314597238,1708440650090,-165.0,0.00048,90]
[314597239,1708440650099,-154.05474448,0.00048011,30]
[314597240,1708440650109,-152.0852822,0.00048025,30]
[314597241,1708440650119,-208.0,0.00048026,20]
[314597242,1708440650129,-150.0971925,0.00048073,30]
[314597243,1708440650139,-153.52419893,0.00048085,30]
[314597244,1708440650149,-441.58987554,0.00048087,30]
[314597245,1708440650159,-153.6406607,0.00048128,30]
[314597246,1708440650169,-500.0,0.00048137,30]
[314597247,1708440650179,-150.0,0.00048156,7]
[314597248,1708440650190,-152.0852822,0.00048165,30]
[314597249,1708440650201,-441.58987554,0.00048179,30]
[314597250,1708440650212,-150.0,0.00048202,7]
[314597251,1708440650221,-150.0,0.00048208,120]
[314597252,1708440650231,-600.0,0.00048208,120]
[314597253,1708440650240,-666.0,0.00048208,2]
[314597254,1708440650249,-150.0971925,0.00048212,30]
[314597255,1708440650258,-500.0,0.00048218,30]
[314597256,1708440650267,-708.87,0.00048219,30]
[314597257,1708440650277,-500.0,0.00048219,30]
[314597258,1708440650286,-500.0,0.00048219,30]
[314597259,1708440650300,-645.83,0.00048219,30]
[314597260,1708440650310,-500.0,0.00048219,30]
[314597261,1708440650319,-500.0,0.00048219,30]
[314597262,1708440650329,-500.0,0.00048219,30]
[314597263,1708440650339,-500.0,0.00048219,30]
[314597264,1708440650351,-500.0,0.00048219,30]
[314597265,1708440650363,-500.0,0.00048219,30]
[314597266,1708440650373,-500.0,0.00048219,30]
[314597267,1708440650383,-726.59,0.00048219,30]
[314597268,1708440650395,-660.35,0.00048219,30]
[314597269,1708440650404,-1314.54,0.00048219,30]
[314597270,1708440650413,-676.26,0.00048219,30]
[314597271,1708440650423,-1484.04,0.00048219,30]
[314597272,1708440650433,-740.55,0.00048219,30]
[314597273,1708440650443,-637.52,0.00048219,30]
[314597274,1708440650453,-500.0,0.00048219,30]
[314597275,1708440650462,-500.0,0.00048219,30]
[314597276,1708440650471,-14405.28,0.00048219,30]
[314597277,1708440650481,-500.0,0.00048219,30]
[314597278,1708440650491,-500.0,0.00048219,30]
[314597279,1708440650501,-2487.19,0.00048219,30]
[314597280,1708440650511,-520.52,0.00048219,30]
[314597281,1708440650521,-500.0,0.00048219,30]
[314597282,1708440650531,-500.0,0.00048219,30]
[314597283,1708440650543,-2780.6,0.00048219,30]
[314597284,1708440650552,-1010.8,0.00048219,30]
[314597285,1708440650562,-514.71,0.00048219,30]
[314597286,1708440650572,-153.6406607,0.00048258,30]
[314597287,1708440650582,-158.4013139,0.00048279,30]
[314597288,1708440650591,-153.49871339,0.00048315,30]
[314597289,1708440650601,-150.0,0.00048336,7]
[314597290,1708440650611,-152.0,0.00048356,90]
[314597291,1708440650620,-150.0,0.00048362,7]
[314597292,1708440650630,-152.0852822,0.00048362,30]
[314597293,1708440650640,-170.63943527,0.00048392,120]
[314597294,1708440650650,-153.49871339,0.00048406,30]
[314597295,1708440650662,-158.4013139,0.00048408,30]
[314597296,1708440650672,-500.0,0.0004841,30]
[314597297,1708440650682,-153.49871339,0.00048439,30]
[314597298,1708440650692,-223.58388203,0.0004845,4]
[314597299,1708440650701,-152.0852822,0.00048456,30]
[314597300,1708440650711,-217.18227552,0.00048461,2]
[314597301,1708440650720,-4279.41319237,0.00048461,2]
[314597302,1708440650730,-5000.0,0.00048482,30]
[314597303,1708440650739,-1000.0,0.00048482,30]
[314597304,1708440650749,-85564.2472745,0.00048483,11]
[314597305,1708440650759,-500.0,0.00048492,30]
[314597306,1708440650769,-450.0,0.00048492,7]
[314597307,1708440650779,-708.87,0.00048493,30]
[314597308,1708440650794,-500.0,0.00048493,30]
[314597309,1708440650803,-219.87928254,0.00048493,30]
[314597310,1708440650813,-645.83,0.00048493,30]
[314597311,1708440650824,-500.0,0.00048493,30]
[314597312,1708440650835,-500.0,0.00048493,30]
[314597313,1708440650846,-500.0,0.00048493,30]
[314597314,1708440650856,-500.0,0.00048493,30]
[314597315,1708440650867,-500.0,0.00048493,30]
[314597316,1708440650878,-500.0,0.00048493,30]
[314597317,1708440650889,-500.0,0.00048493,30]
[314597318,1708440650899,-726.59,0.00048493,30]
[314597319,1708440650910,-660.35,0.00048493,30]
[314597320,1708440650920,-1314.54,0.00048493,30]
[314597321,1708440650930,-676.26,0.00048493,30]
[314597322,1708440650942,-1484.04,0.00048493,30]
[314597323,1708440650952,-740.55,0.00048493,30]
[314597324,1708440650962,-500.0,0.00048493,30]
[314597325,1708440650972,-500.0,0.00048493,30]
[314597326,1708440650982,-14405.28,0.00048493,30]
[314597327,1708440650993,-500.0,0.00048493,30]
[314597328,1708440651003,-500.0,0.00048493,30]
[314597329,1708440651017,-2487.19,0.00048493,30]
[314597330,1708440651027,-520.52,0.00048493,30]
[314597331,1708440651037,-500.0,0.00048493,30]
[314597332,1708440651052,-500.0,0.00048493,30]
[314597333,1708440651061,-2780.6,0.00048493,30]
[314597334,1708440651076,-1010.8,0.00048493,30]
[314597335,1708440651085,-514.71,0.00048493,30]
[314597336,1708440651096,-150.0,0.00048501,7]
[314597337,1708440651105,-1000.0,0.00048501,2]
[314597338,1708440651115,-1085.53794381,0.0004851,30]
[314597339,1708440651126,-1232.21951218,0.0004851,30]
[314597340,1708440651137,-441.58987554,0.00048522,30]
[314597341,1708440651147,-441.58987554,0.00048528,30]
[314597342,1708440651158,-152.0852822,0.00048533,30]
[314597343,1708440651168,-167.49074302,0.00048549,30]
[314597344,1708440651179,-600.0,0.00048559,120]
[314597345,1708440651191,-300.0,0.00048559,2]
[314597346,1708440651202,-300.0,0.00048559,2]
[314597347,1708440651212,-300.0,0.00048559,2]
[314597348,1708440651222,-300.0,0.00048559,2]
[314597349,1708440651232,-300.0,0.00048559,2]
[314597350,1708440651242,-300.0,0.00048559,2]
[314597351,1708440651253,-300.0,0.00048559,2]
[314597352,1708440651263,-151.93088735,0.0004856,30]
[314597353,1708440651274,-153.49871339,0.00048585,30]
[314597354,1708440651284,-150.0,0.00048596,7]
[314597355,1708440651301,-1519.81917503,0.00048599,2]
[314597356,1708440651312,-151.93088735,0.00048639,30]
[314597357,1708440651322,-150.0,0.00048646,7]
[314597358,1708440651332,-500.0,0.00048683,30]
[314597359,1708440651341,-152.0852822,0.00048698,30]
[314597360,1708440651353,-150.0,0.00048715,7]
[314597361,1708440651362,-1500.0,0.00048733,7]
[314597362,1708440651372,-155.58772599,0.00048741,30]
[314597363,1708440651381,-150.0,0.00048743,7]
[314597364,1708440651391,-200.0,0.00048754,10]
[314597365,1708440651400,-954.97805766,0.00048756,33]
[314597366,1708440651409,-152.0852822,0.00048756,30]
[314597367,1708440651419,-500.0,0.00048766,30]
[314597368,1708440651428,-708.87,0.00048767,30]
[314597369,1708440651438,-500.0,0.00048767,30]
[314597370,1708440651449,-645.83,0.00048767,30]
[314597371,1708440651459,-500.0,0.00048767,30]
[314597372,1708440651468,-500.0,0.00048767,30]
[314597373,1708440651478,-500.0,0.00048767,30]
[314597374,1708440651486,-500.0,0.00048767,30]
[314597375,1708440651496,-588.55,0.00048767,30]
[314597376,1708440651505,-500.0,0.00048767,30]
[314597377,1708440651515,-207.42,0.00048767,30]
[314597378,1708440651525,-726.59,0.00048767,30]
[314597379,1708440651535,-660.35,0.00048767,30]
[314597380,1708440651550,-1314.54,0.00048767,30]
[314597381,1708440651560,-676.26,0.00048767,30]
[314597382,1708440651570,-1484.04,0.00048767,30]
[314597383,1708440651580,-740.55,0.00048767,30]
[314597384,1708440651590,-563.9,0.00048767,30]
[314597385,1708440651600,-500.0,0.00048767,30]
[314597386,1708440651609,-14405.28,0.00048767,30]
[314597387,1708440651619,-500.0,0.00048767,30]
[314597388,1708440651629,-500.0,0.00048767,30]
[314597389,1708440651639,-2487.19,0.00048767,30]
[314597390,1708440651649,-520.52,0.00048767,30]
[314597391,1708440651659,-500.0,0.00048767,30]
[314597392,1708440651669,-500.0,0.00048767,30]
[314597393,1708440651679,-2780.6,0.00048767,30]
[314597394,1708440651689,-1010.8,0.00048767,30]
[314597395,1708440651699,-514.71,0.00048767,30]
[314597396,1708440651709,-385.87,0.00048773,2]
[314597397,1708440651718,-150.0,0.00048791,7]
[314597398,1708440651728,-150.0,0.00048794,7]
[314597399,1708440651739,-232.66423116,0.00048804,44]
[314597400,1708440651749,-150.0,0.00048821,7]
[314597401,1708440651759,-153.32288752,0.00048847,40]
[314597402,1708440651769,-150.0,0.00048855,7]
[314597403,1708440651778,-152.0852822,0.00048855,30]
[314597404,1708440651788,-150.0,0.00048879,7]
[314597405,1708440651801,-600.0,0.00048884,120]
[314597406,1708440651810,-200.0,0.000489,24]
[314597407,1708440651819,-19871.01337483,0.000489,31]
[314597408,1708440651829,-331161.12204,0.000489,7]
[314597409,1708440651838,-1583.2,0.00048904,2]
[314597410,1708440651847,-869.36,0.00048904,2]
[314597411,1708440651857,-441.58987554,0.00048905,30]
[314597412,1708440651866,-300.0,0.0004891,2]
[314597413,1708440651875,-150.0,0.00048911,7]
[314597414,1708440651883,-150.0,0.00048919,7]
[314597415,1708440651893,-150.0,0.00048937,7]
[314597416,1708440651902,-150.0,0.00048939,7]
[314597417,1708440651911,-300.0,0.0004894,2]
[314597418,1708440651921,-208.0,0.00048947,23]
[314597419,1708440651931,-150.0971925,0.00048948,30]
[314597420,1708440651940,-500.0,0.00048956,30]
[314597421,1708440651995,-1500.0,0.00048963,7]
[314597422,1708440652006,-150.0,0.00048975,7]
[314597423,1708440652015,-300.0,0.00048989,7]
[314597424,1708440652025,-1449.05026769,0.00048992,2]
[314597425,1708440652035,-172757.80259439,0.00048998,120]
[314597426,1708440652178,-27242.19740561,0.00048998,120]
[314597427,1708440652190,-100000.0,0.00049,39]
[314597428,1708440652200,-266.52225003,0.00049,3]
[314597429,1708440652210,-2023.97,0.00049,32]
[314597430,1708440652219,-27935.4658465,0.00049,10]
[314597431,1708440652257,-3613.84489398,0.00049,10]
[314597432,1708440652268,-659.1292335,0.00049,10]
[314597433,1708440652287,-500.0,0.00046849,30]
[314597434,1708440652299,-1300.0,0.00049,10]
[314597435,1708440652310,-13392.51840333,0.00049,10]
[314597436,1708440652405,-357.90159836,0.00046575,2]
[314597437,1708440652414,-479.66542505,0.00046575,7]
[314597438,1708440652423,-500.0,0.00046575,30]
[314597439,1708440652433,-500.0,0.00046849,30]
[314597440,1708440652443,-500.0,0.00048219,30]
[314597441,1708440652454,-3274.60489859,0.00049,10]
[314597442,1708440652472,-2483.8545,0.00049,10]
[314597443,1708440652614,-438.14803371,0.0004499,10]
[314597444,1708440652626,-34.90196629,0.0004499,10]
[314597445,1708440652636,-529.83402741,0.00046575,30]
[314597446,1708440652648,-73.60597259,0.00046575,30]
[314597447,1708440652657,-5912.45652741,0.00049,10]
[314597448,1708440652676,-5161.79318211,0.00049,10]
[314597449,1708440652704,-384.2732348,0.00049,10]
[314597450,1708440652716,-64074.20894854,0.00049,10]
[314597451,1708440652778,-25685.3376099,0.00032338,2]
[314597452,1708440652787,-620.6,0.00046575,30]
[314597453,1708440652799,-500.0,0.00046575,30]
[314597454,1708440652808,-500.0,0.00046575,30]
[314597455,1708440652817,-26696.54176333,0.00049,10]
[314597456,1708440652828,-45111.30856791,0.00049,10]
[314597457,1708440652838,-150.0,0.00049003,7]
[314597458,1708440652847,-150.0,0.00049007,7]
[314597459,1708440652856,-150.0,0.00049012,7]
[314597460,1708440652865,-150.0,0.00049016,7]
[314597461,1708440652875,-150.0,0.0004902,7]
[314597462,1708440652884,-500.0,0.0004904,30]
[314597463,1708440652894,-158.4013139,0.0004904,30]
[314597464,1708440652903,-500.0,0.00049041,30]
[314597465,1708440652913,-645.83,0.00049041,30]
[314597466,1708440652922,-500.0,0.00049041,30]
[314597467,1708440652932,-500.0,0.00049041,30]
[314597468,1708440652942,-500.0,0.00049041,30]
[314597469,1708440652951,-500.0,0.00049041,30]
[314597470,1708440652960,-500.0,0.00049041,30]
[314597471,1708440652970,-726.59,0.00049041,30]
[314597472,1708440652980,-660.35,0.00049041,30]
[314597473,1708440652990,-1314.54,0.00049041,30]
[314597474,1708440653000,-676.26,0.00049041,30]
[314597475,1708440653009,-1484.04,0.00049041,30]
[314597476,1708440653018,-740.55,0.00049041,30]
[314597477,1708440653027,-500.0,0.00049041,30]
[314597478,1708440653036,-14405.28,0.00049041,30]
[314597479,1708440653047,-285.56,0.00049041,30]
[314597480,1708440653057,-220.44033715,0.00049041,30]
[314597481,1708440653066,-2487.19,0.00049041,30]
[314597482,1708440653075,-520.52,0.00049041,30]
[314597483,1708440653084,-500.0,0.00049041,30]
[314597484,1708440653093,-500.0,0.00049041,30]
[314597485,1708440653102,-2780.6,0.00049041,30]
[314597486,1708440653111,-30138.07295511,0.00049041,6]
[314597487,1708440653121,-2856.53834672,0.00049041,6]
[314597488,1708440653130,-7042.46932143,0.00049041,6]
[314597489,1708440653256,-295.6,0.00032697,2]
[314597490,1708440653266,-304.477348,0.0003452,2]
[314597491,1708440653275,-456.716023,0.00034794,2]
[314597492,1708440653285,-608.954697,0.00034931,2]
[314597493,1708440653296,-761.193372,0.00035068,2]
[314597494,1708440653305,-150.0,0.00046574,120]
[314597495,1708440653314,-30.42423945,0.00046849,30]
[314597496,1708440653326,-469.57576055,0.00046849,30]
[314597497,1708440653335,-620.6,0.00046849,30]
[314597498,1708440653344,-620.6,0.00047123,30]
[314597499,1708440653353,-197.32,0.00047123,30]
[314597500,1708440653361,-620.6,0.00047397,30]
[314597501,1708440653371,-620.6,0.00047671,30]
[314597502,1708440653382,-2417.26316972,0.00049041,6]
[314597503,1708440653398,-620.6,0.00047945,30]
[314597504,1708440653407,-23534.87881068,0.00049041,6]
[314597505,1708440653417,-32994.61130183,0.00049041,6]
[314597506,1708440653426,-32994.61130183,0.00049041,6]
[314597507,1708440653435,-32994.61130183,0.00049041,6]
[314597508,1708440653446,-32994.61130183,0.00049041,6]
[314597509,1708440653456,-32994.61130183,0.00049041,6]
[314597510,1708440653467,-32994.61130183,0.00049041,6]
[314597511,1708440653476,-32994.61130183,0.00049041,6]
[314597512,1708440653486,-32994.61030183,0.00049041,6]
[314597513,1708440653495,-1027.26694189,0.00049041,6]
[314597514,1708440653506,-1010.8,0.00049041,30]
[314597515,1708440653515,-514.71,0.00049041,30]
[314597516,1708440653524,-1500.0,0.00049043,7]
[314597517,1708440653533,-1449.05026769,0.00049052,2]
[314597518,1708440653545,-150.0971925,0.00049065,30]
[314597519,1708440653554,-150.0,0.00049069,7]
[314597520,1708440653563,-158.4013139,0.00049071,30]
[314597521,1708440653573,-232.66423114,0.00049078,45]
[314597522,1708440653582,-1500.0,0.00049084,7]
[314597523,1708440653592,-153.49871339,0.00049094,30]
[314597524,1708440653602,-150.0,0.00049096,7]
[314597525,1708440653611,-1185.44305949,0.00049105,2]
[314597526,1708440653620,-441.58987554,0.00049106,30]
[314597527,1708440653630,-150.0,0.00049114,7]
[314597528,1708440653640,-150.0,0.00049115,7]
[314597529,1708440653650,-150.0,0.00049119,7]
[314597530,1708440653659,-150.0,0.00049127,7]
[314597531,1708440653669,-150.0,0.00049135,7]
[314597532,1708440653679,-150.0,0.00049143,7]
[314597533,1708440653690,-150.0,0.0004916,7]
[314597534,1708440653700,-150.0,0.00049165,7]
[314597535,1708440653709,-158.4013139,0.00049176,30]
[314597536,1708440653720,-600.0,0.00049177,7]
[314597537,1708440653729,-300.0,0.00049184,7]
[314597538,1708440653738,-154.13,0.000492,6]
[314597539,1708440653747,-154.13,0.000492,6]
[314597540,1708440653757,-154.13,0.000492,6]
[314597541,1708440653766,-154.13,0.000492,6]
[314597542,1708440653777,-152.27,0.000492,6]
[314597543,1708440653786,-152.27,0.000492,6]
[314597544,1708440653799,-152.27,0.000492,6]
[314597545,1708440653809,-152.27,0.000492,6]
[314597546,1708440653818,-152.27,0.000492,6]
[314597547,1708440653828,-152.27,0.000492,6]
[314597548,1708440653838,-152.27,0.000492,6]
[314597549,1708440653847,-152.27,0.000492,6]
[314597550,1708440653857,-152.27,0.000492,6]
[314597551,1708440653867,-152.27,0.000492,6]
[314597552,1708440653877,-152.27,0.000492,6]
[314597553,1708440653886,-150.0,0.00049216,7]
[314597554,1708440653896,-150.0,0.00049223,7]
[314597555,1708440653906,-150.0,0.00049229,7]
[314597556,1708440653915,-200.0,0.0004923,20]
[314597557,1708440653925,-800.0,0.0004923,20]
[314597558,1708440653935,-200.0,0.0004923,30]
[314597559,1708440653945,-200.0,0.0004923,30]
[314597560,1708440653954,-500.0,0.0004923,30]
[314597561,1708440653964,-150.0,0.00049231,7]
[314597562,1708440653973,-152.0852822,0.00049238,30]
[314597563,1708440653983,-441.58987554,0.00049261,30]
[314597564,1708440653992,-153.52419893,0.00049269,30]
[314597565,1708440654002,-155.74813688,0.0004927,30]
[314597566,1708440654011,-150.0,0.00049271,7]
[314597567,1708440654021,-263.86405763,0.00049281,7]
[314597568,1708440654031,-1500.0,0.00049298,7]
[314597569,1708440654040,-1500.0,0.00049306,7]
[314597570,1708440654054,-156.1180249,0.00049313,4]
[314597571,1708440654063,-500.0,0.00049314,30]
[314597572,1708440654073,-555.00017259,0.00049315,120]
[314597573,1708440654082,-500.0,0.00049315,30]
[314597574,1708440654092,-645.83,0.00049315,30]
[314597575,1708440654101,-500.0,0.00049315,30]
[314597576,1708440654110,-500.0,0.00049315,30]
[314597577,1708440654120,-500.0,0.00049315,30]
[314597578,1708440654129,-500.0,0.00049315,30]
[314597579,1708440654138,-500.0,0.00049315,30]
[314597580,1708440654148,-726.59,0.00049315,30]
[314597581,1708440654157,-660.35,0.00049315,30]
[314597582,1708440654166,-1314.54,0.00049315,30]
[314597583,1708440654175,-676.26,0.00049315,30]
[314597584,1708440654186,-1484.04,0.00049315,30]
[314597585,1708440654196,-3000.0,0.00049315,46]
[314597586,1708440654206,-740.55,0.00049315,30]
[314597587,1708440654217,-500.0,0.00049315,30]
[314597588,1708440654228,-14405.28,0.00049315,30]
[314597589,1708440654239,-2487.19,0.00049315,30]
[314597590,1708440654248,-520.52,0.00049315,30]
[314597591,1708440654257,-500.0,0.00049315,30]
[314597592,1708440654266,-500.0,0.00049315,30]
[314597593,1708440654276,-2780.6,0.00049315,30]
[314597594,1708440654286,-1010.8,0.00049315,30]
[314597595,1708440654298,-514.71,0.00049315,30]
[314597596,1708440654308,-2400.0,0.00049315,30]
[314597597,1708440654317,-326.34375494,0.00049317,4]
[314597598,1708440654326,-150.0,0.0004932,30]
[314597599,1708440654336,-150.0,0.00049343,7]
[314597600,1708440654346,-154.05474448,0.00049356,30]
[314597601,1708440654355,-155.18298927,0.00049357,30]
[314597602,1708440654365,-153.52419893,0.00049367,30]
[314597603,1708440654375,-186.83697916,0.00049386,7]
[314597604,1708440654385,-90034.27150519,0.000494,120]
[314597605,1708440654394,-150.87134588,0.000494,25]
[314597606,1708440654403,-200.0,0.000494,2]
[314597607,1708440654413,-200.0,0.000494,2]